bitfinex-derivatives/quotes_BNBF0:USTF0_20260110
["timestamp","ask_amount","ask_price","bid_price","bid_amount"]
[1768036509419,2.7494907,904.01,902.11,0.83024138]
[1768036509715,2.7494907,904.01,902.12,0.69183716]
[1768036510015,2.7494907,904.01,902.13,0.69183716]
[1768036510222,2.7494907,904.01,902.14,0.69183716]
[1768036510416,2.7494907,904.01,902.15,0.69183716]
[1768036510615,2.7494907,904.01,902.16,0.69183716]
[1768036510819,2.7494907,904.01,902.1,0.83024138]
[1768036510820,2.7494907,904.01,902.17,0.69183716]
[1768036511020,2.7494907,904.01,902.18,0.69183716]
[1768036511217,2.7494907,904.01,902.19,0.69183716]
[1768036511421,2.7494907,904.01,902.2,0.69183716]
[1768036511616,2.7494907,904.01,902.21,0.69183716]
[1768036511820,2.7494907,904.01,902.22,0.69183716]
[1768036512021,2.7494907,904.01,902.23,0.69183716]
[1768036512319,2.7494907,904.01,902.24,0.69183716]
[1768036512521,2.7494907,904.01,902.25,0.69183716]
[1768036512719,2.7494907,904.01,902.26,0.69183716]
[1768036512919,2.7494907,903.92,902.27,0.69183716]
[1768036513118,2.7494907,903.92,902.28,0.69183716]
[1768036513421,2.7494907,903.92,902.29,0.69183716]
[1768036513622,2.7494907,903.93,902.3,0.69183716]
[1768036513821,2.7494907,903.93,902.24,2.094]
[1768036514022,2.7494907,903.94,902.25,0.69171067]
[1768036514322,2.7494907,903.94,902.26,0.69171067]
[1768036514521,2.7494907,903.94,902.27,0.69171067]
[1768036514721,2.7494907,903.94,902.28,0.69171067]
[1768036515017,2.7494907,903.94,902.29,0.69171067]
[1768036515217,2.7494907,903.94,902.3,0.69171067]
[1768036515519,2.7494907,903.94,902.31,0.69171067]
[1768036515817,2.7494907,903.94,902.32,0.69168447]
[1768036516016,2.7494907,903.95,902.24,2.094]
[1768036516220,2.7494907,903.95,902.25,0.69168447]
[1768036516518,2.7494907,903.95,902.26,0.69168447]
[1768036516719,2.7494907,903.95,902.27,0.69168447]
[1768036516922,2.7494907,903.95,902.28,0.69168447]
[1768036517120,2.7494907,903.95,902.29,0.69168447]
[1768036517320,2.7494907,903.97,902.3,0.69168447]
[1768036517620,2.7494907,903.97,902.31,0.69168447]
[1768036517922,2.7494907,903.97,902.32,0.69168447]
[1768036518121,2.7494907,903.97,902.33,0.69168447]
[1768036518320,2.7494907,903.97,902.34,0.69168447]
[1768036518521,2.7494907,903.97,902.24,2.094]
[1768036518822,2.7494907,903.97,902.25,0.69170146]
[1768036519025,2.7494907,903.97,902.26,0.69170146]
[1768036519223,2.7494907,903.96,902.27,0.69170146]
[1768036519422,2.7494907,903.96,902.28,0.69170146]
[1768036519624,2.7494907,903.96,902.29,0.69170146]
[1768036519825,2.7494907,903.96,902.3,0.69170146]
[1768036520027,2.7494907,903.96,902.31,0.69170146]
[1768036520223,2.7494907,903.96,902.32,0.69170146]
[1768036520426,2.7494907,903.96,902.33,0.69170146]
[1768036520624,2.7494907,903.96,902.34,0.69170146]
[1768036520926,2.7494907,903.96,902.24,2.094]
[1768036521124,2.7494907,903.96,902.25,0.69174441]
[1768036521324,2.7494907,903.96,902.26,0.69174441]
[1768036521525,2.7494907,903.96,902.27,0.69174441]
[1768036521725,2.7494907,903.96,902.28,0.69174441]
[1768036521930,2.7494907,903.96,902.29,0.69174441]
[1768036522127,2.7494907,903.96,902.3,0.69174441]
[1768036522426,2.7494907,903.96,902.31,0.69174441]
[1768036522626,2.7494907,903.96,902.32,0.69174441]
[1768036522926,2.7494907,904.09,902.33,0.69174441]
[1768036523125,2.7494907,904.09,902.34,0.69174441]
[1768036523427,2.7494907,904.09,902.35,0.69174441]
[1768036523629,2.7494907,904.09,902.36,0.69174441]
[1768036523831,2.7494907,904.09,902.37,0.69174441]
[1768036524030,2.7494907,904.09,902.38,0.69174441]
[1768036524227,2.7494907,904.09,902.39,0.69174441]
[1768036524427,2.7494907,904.09,902.4,0.69174441]
[1768036524631,2.7494907,904.09,902.41,0.69174441]
[1768036524927,2.7494907,904.09,902.42,0.69174441]
[1768036525127,2.7494907,904.09,902.43,0.69174441]
[1768036525330,2.7494907,904.09,902.44,0.69174441]
[1768036525629,2.7494907,904.08,902.45,0.69174441]
[1768036525827,2.7494907,904.08,902.46,0.69174441]
[1768036526032,2.7494907,904.08,902.47,0.69174441]
[1768036526231,2.7494907,904.08,902.48,0.69174441]
[1768036526432,2.7494907,904.08,902.49,0.69174441]
[1768036526729,2.7494907,904.08,902.24,2.094]
[1768036526932,2.7494907,904.08,902.25,0.69196644]
[1768036527131,2.7494907,904.08,902.26,0.69196644]
[1768036527429,2.7494907,904.08,902.27,0.69196644]
[1768036527628,2.7494907,904.08,902.28,0.69196644]
[1768036527831,2.7494907,904.08,902.29,0.69196644]
[1768036528132,2.7494907,904.08,902.3,0.69196644]
[1768036528328,2.7494907,904.08,902.31,0.69196644]
[1768036528628,2.7494907,904.07,902.32,0.69196644]
[1768036528927,2.7494907,904.07,902.33,0.69196644]
[1768036529131,2.7494907,904.07,902.34,0.69196644]
[1768036529332,2.7494907,904.07,902.35,0.69196644]
[1768036529628,2.7494907,904.07,902.36,0.69196644]
[1768036529832,2.7494907,904.07,902.37,0.69196644]
[1768036530032,2.7494907,904.07,902.38,0.69196644]
[1768036530333,2.7494907,904.07,902.39,0.69196644]
[1768036530534,2.7494907,904.07,902.4,0.69196644]
[1768036530734,2.7494907,904.07,902.41,0.69196644]
[1768036530934,2.7494907,904.07,902.42,0.69196644]
[1768036531135,2.7494907,904.06,902.43,0.69196644]
[1768036531330,2.7494907,904.06,902.44,0.69196644]
[1768036531630,2.7494907,904.06,902.45,0.69196644]
[1768036531833,2.7494907,904.06,902.24,2.094]
[1768036531834,2.7494907,904.06,902.46,0.69196644]
[1768036532029,2.7494907,904.06,902.47,0.69196644]
[1768036532233,2.7494907,904.06,902.48,0.69196644]
[1768036532432,2.7494907,904.06,902.49,0.69196644]
[1768036532631,2.7494907,904.06,902.24,2.094]
[1768036532831,2.7494907,904.02,902.25,0.69190137]
[1768036533035,2.7494907,904.02,902.26,0.69190137]
[1768036533238,2.7494907,904.02,902.27,0.69190137]
[1768036533436,2.7494907,904.02,902.28,0.69190137]
[1768036533636,2.7494907,904.02,902.29,0.69190137]
[1768036533836,2.7494907,904.01,902.3,0.69190137]
[1768036534037,2.7494907,904.01,902.31,0.69190137]
[1768036534240,2.7494907,904.01,902.32,0.69190137]
[1768036534433,2.7494907,904.01,902.33,0.69190137]
[1768036534738,2.7494907,904.01,902.34,0.69190137]
[1768036534937,2.7494907,904.01,902.35,0.69190137]
[1768036535138,2.7494907,904.01,902.36,0.69190137]
[1768036535338,2.7494907,904.01,902.37,0.69190137]
[1768036535539,2.7494907,904.01,902.38,0.69190137]
[1768036535835,2.7494907,904.01,902.39,0.69190137]
[1768036536041,2.7494907,904.01,902.4,0.69190137]
[1768036536336,2.7494907,904.01,902.41,0.69190137]
[1768036536539,2.7494907,904.0,902.42,0.69190137]
[1768036536738,2.7494907,904.0,902.43,0.69190137]
[1768036536938,2.7494907,904.0,902.44,0.69190137]
[1768036537136,2.7494907,904.0,902.45,0.69190137]
[1768036537340,2.7494907,904.0,902.24,2.094]
[1768036537341,2.7494907,904.0,902.46,0.69190137]
[1768036537541,2.7494907,904.0,902.47,0.69190137]
[1768036537841,2.7494907,904.0,902.24,2.094]
[1768036538038,2.7494907,904.0,902.25,0.69208278]
[1768036538237,2.7494907,904.0,902.26,0.69208278]
[1768036538541,2.7494907,904.0,902.27,0.69208278]
[1768036538741,2.7494907,904.0,902.28,0.69208278]
[1768036538936,2.7494907,904.0,902.29,0.69208278]
[1768036539137,2.7494907,904.0,902.3,0.69208278]
[1768036539440,2.7494907,904.0,902.31,0.69208278]
[1768036539736,2.7494907,904.0,902.32,0.69208278]
[1768036539937,2.7494907,904.0,902.33,0.69208278]
[1768036540139,2.7494907,904.0,902.34,0.69208278]
[1768036540337,2.7494907,904.0,902.35,0.69208278]
[1768036540638,2.7494907,903.99,902.36,0.69208278]
[1768036540838,2.7494907,903.99,902.37,0.69208278]
[1768036541038,2.7494907,903.99,902.38,0.69208278]
[1768036541240,2.7494907,903.99,902.39,0.69208278]
[1768036541444,2.7494907,903.99,902.4,0.69208278]
[1768036541743,2.7494907,903.99,902.41,0.69208278]
[1768036541940,2.7494907,903.99,902.42,0.69208278]
[1768036542140,2.7494907,903.99,902.43,0.69208278]
[1768036542439,2.7494907,903.99,902.44,0.69208278]
[1768036542644,2.7494907,904.01,902.45,0.69208278]
[1768036542844,2.7494907,904.01,902.46,0.69208278]
[1768036543147,2.7494907,904.0,902.47,0.69208278]
[1768036543345,2.7494907,904.0,902.48,0.69208278]
[1768036543641,2.7494907,904.0,902.49,0.69208278]
[1768036543844,2.7494907,904.0,902.5,0.69208278]
[1768036544139,2.7494907,904.0,902.51,0.69208278]
[1768036544341,2.7494907,904.0,902.52,0.69208278]
[1768036544539,2.7494907,904.0,902.24,2.094]
[1768036544740,2.7494907,904.0,902.25,0.69255005]
[1768036544941,2.7494907,904.0,902.26,0.69255005]
[1768036545141,2.7494907,904.0,902.27,0.69255005]
[1768036545444,2.7494907,904.0,902.28,0.69255005]
[1768036545639,2.7494907,904.0,902.29,0.69255005]
[1768036545844,2.7494907,904.0,902.3,0.69255005]
[1768036546053,2.7494907,904.0,902.31,0.69255005]
[1768036546241,2.7494907,904.02,902.32,0.69255005]
[1768036546440,2.7494907,904.02,902.33,0.69255005]
[1768036546644,2.7494907,904.02,902.34,0.69255005]
[1768036546842,2.7494907,904.02,902.35,0.69255005]
[1768036547044,2.7494907,904.02,902.25,0.83024138]
[1768036547045,2.7494907,904.02,902.36,0.69255005]
[1768036547345,2.7494907,904.02,902.37,0.69255005]
[1768036547644,2.7494907,904.02,902.25,0.83024138]
[1768036547645,2.7494907,904.02,902.38,0.69255005]
[1768036547846,2.7494907,904.02,902.39,0.69255005]
[1768036548044,2.7494907,904.02,902.4,0.69255005]
[1768036548344,2.7494907,904.02,902.41,0.69255005]
[1768036548540,2.7494907,904.02,902.42,0.69255005]
[1768036548842,2.7494907,904.02,902.43,0.69255005]
[1768036549040,2.7494907,904.02,902.44,0.69255005]
[1768036549240,2.7494907,904.02,902.45,0.69255005]
[1768036549438,2.7494907,904.02,902.46,0.69255005]
[1768036549640,2.7494907,904.02,902.47,0.69255005]
[1768036549843,2.7494907,904.02,902.48,0.69255005]
[1768036550044,2.7494907,904.02,902.49,0.69255005]
[1768036550245,2.7494907,904.02,902.5,0.69255005]
[1768036550540,2.7494907,904.02,902.51,0.69255005]
[1768036550843,2.7494907,904.02,902.52,0.69255005]
[1768036551044,2.7494907,904.02,902.53,0.69255005]
[1768036551240,2.7494907,904.02,902.54,0.69255005]
[1768036551446,2.7494907,904.02,902.25,0.83024138]
[1768036551645,2.7494907,904.01,902.26,0.69256468]
[1768036551941,2.7494907,904.01,902.27,0.69256468]
[1768036552144,2.7494907,904.01,902.28,0.69256468]
[1768036552345,2.7494907,904.01,902.29,0.69256468]
[1768036552545,2.7494907,904.01,902.3,0.69256468]
[1768036552846,2.7494907,904.01,902.31,0.69256468]
[1768036553045,2.7494907,903.93,902.32,0.69256468]
[1768036553242,2.7494907,903.93,902.33,0.69256468]
[1768036553442,2.7494907,903.93,902.34,0.69256468]
[1768036553742,2.7494907,903.93,902.35,0.69256468]
[1768036553946,2.7494907,903.93,902.36,0.69256468]
[1768036554146,2.7494907,903.93,902.37,0.69256468]
[1768036554443,2.7494907,903.93,902.38,0.69256468]
[1768036554741,2.7494907,903.94,902.39,0.69256468]
[1768036554941,2.7494907,903.94,902.4,0.69256468]
[1768036555145,2.7494907,903.94,902.41,0.69256468]
[1768036555345,2.7494907,903.94,902.42,0.69256468]
[1768036555541,2.7494907,903.94,902.43,0.69256468]
[1768036555744,2.7494907,903.94,902.44,0.69256468]
[1768036555943,2.7494907,903.94,902.45,0.69256468]
[1768036556145,2.7494907,903.94,902.46,0.69256468]
[1768036556342,2.7494907,903.94,902.24,2.094]
[1768036556544,2.7494907,903.94,902.25,0.69252107]
[1768036556748,2.7494907,903.94,902.26,0.69252107]
[1768036556947,2.7494907,903.94,902.27,0.69252107]
[1768036557144,2.7494907,903.94,902.28,0.69252107]
[1768036557443,2.7494907,903.94,902.29,0.69252107]
[1768036557744,2.7494907,903.94,902.3,0.69252107]
[1768036557944,2.7494907,903.94,902.31,0.69252107]
[1768036558148,2.7494907,903.94,902.32,0.69252107]
[1768036558449,2.7494907,903.94,902.33,0.69252107]
[1768036558644,2.7494907,903.94,902.34,0.69252107]
[1768036558844,2.7494907,903.94,902.35,0.69252107]
[1768036559049,2.7494907,903.94,902.36,0.69252107]
[1768036559250,2.7494907,903.94,902.37,0.69252107]
[1768036559549,2.7494907,903.94,902.38,0.69252107]
[1768036559745,2.7494907,903.94,902.39,0.69252107]
[1768036560049,2.7494907,903.94,902.4,0.69252107]
[1768036560349,2.7494907,903.94,902.41,0.69252107]
[1768036560546,2.7494907,903.94,902.42,0.69252107]
[1768036560745,2.7494907,903.94,902.43,0.69252107]
[1768036560949,2.7494907,903.94,902.44,0.69252107]
[1768036561149,2.7494907,903.94,902.45,0.69252107]
[1768036561350,2.7494907,903.94,902.46,0.69252107]
[1768036561646,2.7494907,903.94,902.39,2.121]
[1768036561848,2.7494907,903.94,902.4,0.69314825]
[1768036562053,2.7494907,903.89,902.41,0.69314825]
[1768036562246,2.7494907,903.89,902.39,2.121]
[1768036562549,2.7494907,903.89,902.4,0.69317235]
[1768036562747,2.7494907,903.89,902.41,0.69317235]
[1768036563049,2.7494907,904.01,902.42,0.69317235]
[1768036563252,2.7494907,904.01,902.43,0.69317235]
[1768036563453,2.7494907,904.01,902.44,0.69317235]
[1768036563653,2.7494907,904.01,902.45,0.69317235]
[1768036563850,2.7494907,904.01,902.46,0.69317235]
[1768036564050,2.7494907,904.01,902.47,0.69317235]
[1768036564249,2.7494907,904.01,902.48,0.69317235]
[1768036564550,2.7494907,904.01,902.39,2.121]
[1768036564749,2.7494907,904.01,902.4,0.69320962]
[1768036564953,2.7494907,904.01,902.41,0.69320962]
[1768036565151,2.7494907,903.93,902.42,0.69320962]
[1768036565353,2.7494907,903.93,902.43,0.69320962]
[1768036565552,2.7494907,903.94,902.44,0.69320962]
[1768036565752,2.7494907,903.94,902.45,0.69320962]
[1768036565953,2.7494907,903.94,902.39,2.121]
[1768036566152,2.7494907,903.94,902.4,0.69309479]
[1768036566356,2.7494907,903.94,902.41,0.69309479]
[1768036566551,2.7494907,903.94,902.42,0.69309479]
[1768036566756,2.7494907,903.95,902.43,0.69309479]
[1768036566957,2.7494907,903.95,902.44,0.69309479]
[1768036567256,2.7494907,903.95,902.39,2.121]
[1768036567454,2.7494907,903.95,902.4,0.69293139]
[1768036567657,2.7494907,903.95,902.41,0.69293139]
[1768036567856,2.7494907,903.95,902.42,0.69293139]
[1768036568054,2.7494907,903.95,902.43,0.69293139]
[1768036568353,2.7494907,903.95,902.44,0.69293139]
[1768036568558,2.7494907,903.95,902.39,2.121]
[1768036568854,2.7494907,903.95,902.4,0.69286779]
[1768036569153,2.7494907,903.95,902.41,0.69286779]
[1768036569353,2.7494907,903.95,902.42,0.69286779]
[1768036569556,2.7494907,903.95,902.43,0.69286779]
[1768036569759,2.7494907,903.96,902.39,2.121]
[1768036569960,2.7494907,903.96,902.4,0.69281214]
[1768036570155,2.7494907,903.96,902.41,0.69281214]
[1768036570359,2.7494907,903.96,902.42,0.69281214]
[1768036570655,2.7494907,903.96,902.43,0.69281214]
[1768036570854,2.7494907,903.96,902.39,2.121]
[1768036571057,2.7494907,903.96,902.4,0.69276285]
[1768036571256,2.7494907,903.96,902.41,0.69276285]
[1768036571454,2.7494907,903.96,902.42,0.69276285]
[1768036571656,2.7494907,903.96,902.43,0.69276285]
[1768036571855,2.7494907,903.96,902.39,2.121]
[1768036572061,2.7494907,903.96,902.4,0.69271883]
[1768036572360,2.7494907,903.96,902.41,0.69271883]
[1768036572557,2.7494907,903.96,902.42,0.69271883]
[1768036572756,2.7494907,903.96,902.43,0.69271883]
[1768036572956,2.7494907,903.96,902.39,2.121]
[1768036573361,2.7494907,903.92,902.39,2.121]
[1768036575464,2.7494907,903.93,902.39,2.121]
[1768036581570,0.19269476,903.55,902.39,2.121]
[1768036590083,0.19269476,903.55,902.19,6.84162704]
[1768036590384,0.19269476,903.55,902.2,0.69233948]
[1768036590583,0.19269476,903.55,902.19,6.84162704]
[1768036590783,0.19269476,903.55,902.2,0.69222629]
[1768036591081,0.19269476,903.55,902.19,6.84162704]
[1768036592980,0.19269476,903.55,902.2,0.69203948]
[1768036593184,0.19269476,903.55,902.21,0.69203948]
[1768036593386,0.19269476,903.55,902.22,0.69203948]
[1768036593585,0.19269476,903.55,902.23,0.69203948]
[1768036593786,0.19269476,903.55,902.24,0.69203948]
[1768036594085,0.19269476,903.55,902.25,0.69203948]
[1768036594381,0.19269476,903.55,902.19,6.84162704]
[1768036594586,0.19269476,903.55,902.2,0.6919032]
[1768036594782,0.19269476,903.55,902.21,0.6919032]
[1768036594982,0.19269476,903.55,902.22,0.6919032]
[1768036595186,0.19269476,903.55,902.23,0.6919032]
[1768036595381,0.19269476,903.55,902.24,0.6919032]
[1768036595687,0.19269476,903.55,902.19,6.84162704]
[1768036595889,0.19269476,903.55,902.2,0.6918508]
[1768036596089,0.19269476,903.55,902.21,0.6918508]
[1768036596287,0.19269476,903.55,902.22,0.6918508]
[1768036596486,0.19269476,903.55,902.23,0.6918508]
[1768036596787,0.19269476,903.55,902.24,0.6918508]
[1768036597084,0.19269476,903.55,902.19,6.84162704]
[1768036597283,0.19269476,903.55,902.2,0.69181118]
[1768036597486,0.19269476,903.55,902.21,0.69181118]
[1768036597782,0.19269476,903.55,902.22,0.69181118]
[1768036597983,0.19269476,903.55,902.23,0.69181118]
[1768036598189,0.19269476,903.55,902.19,6.84162704]
[1768036598485,0.19269476,903.55,902.2,0.69176682]
[1768036598684,0.19269476,903.55,902.21,0.69176682]
[1768036598883,0.19269476,903.55,902.22,0.69176682]
[1768036599186,0.19269476,903.55,902.23,0.69176682]
[1768036599384,0.19269476,903.55,902.19,6.84162704]
[1768036599587,0.19269476,903.55,902.2,0.69176664]
[1768036599782,0.19269476,903.55,902.21,0.69176664]
[1768036599985,0.19269476,903.55,902.22,0.69176664]
[1768036600186,0.19269476,903.55,902.23,0.69176664]
[1768036600389,0.19269476,903.55,902.19,6.84162704]
[1768036600590,0.19269476,903.55,902.2,0.69177694]
[1768036600890,0.19269476,903.55,902.19,6.84162704]
[1768036600891,0.19269476,903.55,902.21,0.69177694]
[1768036601088,0.19269476,903.55,902.22,0.69177694]
[1768036601289,0.19269476,903.55,902.23,0.69177694]
[1768036601485,0.19269476,903.55,902.19,6.84162704]
[1768036601689,0.19269476,903.55,902.2,0.69179769]
[1768036601888,0.19269476,903.55,902.21,0.69179769]
[1768036602087,0.19269476,903.55,902.22,0.69179769]
[1768036602292,0.19269476,903.55,902.23,0.69179769]
[1768036602489,0.19269476,903.55,902.19,6.84162704]
[1768036602789,0.19269476,903.55,902.2,0.69182943]
[1768036602994,0.19269476,903.55,902.19,6.84162704]
[1768036603194,0.19269476,903.55,902.2,0.69188883]
[1768036603394,0.19269476,903.55,902.19,6.84162704]
[1768036604190,0.19269476,903.55,902.2,0.69194141]
[1768036604390,0.19269476,903.55,902.19,6.84162704]
[1768036604595,0.19269476,903.55,902.2,0.69192737]
[1768036604890,0.19269476,903.55,902.19,6.84162704]
[1768036605089,0.19269476,903.55,902.2,0.69192756]
[1768036605290,0.19269476,903.55,902.19,6.84162704]
[1768036605496,0.19269476,903.55,902.2,0.69191578]
[1768036605791,0.19269476,903.55,902.19,6.84162704]
[1768036606093,0.19269476,903.55,902.2,0.69191617]
[1768036606293,0.19269476,903.55,902.19,6.84162704]
[1768036606492,0.19269476,903.55,902.2,0.69198686]
[1768036606691,0.19269476,903.55,902.19,6.84162704]
[1768036606894,0.19269476,903.55,902.2,0.69198699]
[1768036607094,0.19269476,903.55,902.19,6.84162704]
[1768036607295,0.19269476,903.55,902.2,0.69198699]
[1768036607496,0.19269476,903.55,902.19,6.84162704]
[1768036607695,0.19269476,903.55,902.2,0.69201983]
[1768036607893,0.19269476,903.55,902.19,6.84162704]
[1768036608095,0.19269476,903.55,902.2,0.69201983]
[1768036608294,0.19269476,903.55,902.21,0.69206115]
[1768036608499,0.19269476,903.55,902.19,6.84162704]
[1768036608800,0.19269476,903.55,902.2,0.69206115]
[1768036609099,0.19269476,903.55,902.21,0.69206115]
[1768036609295,0.19269476,903.55,902.19,6.84162704]
[1768036609599,0.19269476,903.55,902.2,0.69211154]
[1768036609808,0.19269476,903.55,902.21,0.69211154]
[1768036610108,0.19269476,903.55,902.19,6.84162704]
[1768036610296,0.19269476,903.55,902.2,0.69211154]
[1768036610500,0.19269476,903.55,902.21,0.69211154]
[1768036610700,0.19269476,903.55,902.19,6.84162704]
[1768036610900,0.19269476,903.55,902.2,0.69210963]
[1768036611101,0.19269476,903.55,902.21,0.69210963]
[1768036611308,0.19269476,903.55,902.19,6.84162704]
[1768036611508,0.19269476,903.55,902.2,0.69211133]
[1768036611697,0.19269476,903.55,902.21,0.69211133]
[1768036611901,0.19269476,903.55,902.19,6.84162704]
[1768036612099,0.19269476,903.55,902.2,0.69211133]
[1768036612298,0.19269476,903.55,902.21,0.69211133]
[1768036612500,0.19269476,903.55,902.19,6.84162704]
[1768036612701,0.19269476,903.55,902.2,0.69211667]
[1768036612900,0.19269476,903.55,902.21,0.69211667]
[1768036613110,0.19269476,903.55,902.22,0.69211667]
[1768036613297,0.19269476,903.55,902.23,0.69211667]
[1768036613500,0.19269476,903.55,902.24,0.69211667]
[1768036613698,0.19269476,903.55,902.25,0.69211667]
[1768036613902,0.19269476,903.55,902.26,0.69211667]
[1768036614201,0.19269476,903.55,902.27,0.69211667]
[1768036614508,0.19269476,903.55,902.19,6.84162704]
[1768036614802,0.19269476,903.55,902.2,0.6921384]
[1768036615102,0.19269476,903.55,902.21,0.6921384]
[1768036615303,0.19269476,903.55,902.22,0.6921384]
[1768036615599,0.19269476,903.55,902.23,0.6921384]
[1768036615802,0.19269476,903.55,902.24,0.6921384]
[1768036616003,0.19269476,903.55,902.25,0.6921384]
[1768036616304,0.19269476,903.55,902.26,0.6921384]
[1768036616504,0.19269476,903.55,902.27,0.6921384]
[1768036616803,0.19269476,903.55,902.28,0.6921384]
[1768036617002,0.19269476,903.55,902.19,6.84162704]
[1768036617303,0.19269476,903.55,902.2,0.69217538]
[1768036617598,0.19269476,903.55,902.21,0.69217538]
[1768036617802,0.19269476,903.55,902.22,0.69217538]
[1768036618002,0.19269476,903.55,902.23,0.69217538]
[1768036618199,0.19269476,903.55,902.24,0.69217538]
[1768036618503,0.19269476,903.55,902.25,0.69217538]
[1768036618698,0.19269476,903.55,902.26,0.69217538]
[1768036618900,0.19269476,903.55,902.27,0.69217538]
[1768036619102,0.19269476,903.55,902.28,0.69217538]
[1768036619299,0.19269476,903.55,902.19,6.84162704]
[1768036619504,0.19269476,903.55,902.2,0.6920825]
[1768036619705,0.19269476,903.55,902.21,0.6920825]
[1768036619904,0.19269476,903.55,902.22,0.6920825]
[1768036620204,0.19269476,903.55,902.23,0.6920825]
[1768036620505,0.19269476,903.55,902.24,0.6920825]
[1768036620705,0.19269476,903.55,902.25,0.6920825]
[1768036621005,0.19269476,903.55,902.26,0.6920825]
[1768036621205,0.19269476,903.55,902.27,0.6920825]
[1768036621399,0.19269476,903.55,902.28,0.6920825]
[1768036621602,0.19269476,903.55,902.19,6.84162704]
[1768036621804,0.19269476,903.55,902.2,0.69215241]
[1768036622004,0.19269476,903.55,902.21,0.69215241]
[1768036622207,0.19269476,903.55,902.22,0.69215241]
[1768036622504,0.19269476,903.55,902.23,0.69215241]
[1768036622708,0.19269476,903.55,902.24,0.69215241]
[1768036623004,0.19269476,903.55,902.25,0.69215241]
[1768036623208,0.19269476,903.55,902.26,0.69215241]
[1768036623504,0.19269476,903.55,902.27,0.69215241]
[1768036623708,0.19269476,903.55,902.19,6.84162704]
[1768036623911,0.19269476,903.55,902.2,0.69225539]
[1768036624107,0.19269476,903.55,902.21,0.69225539]
[1768036624305,0.19269476,903.55,902.22,0.69225539]
[1768036624610,0.19269476,903.55,902.23,0.69225539]
[1768036624909,0.19269476,903.55,902.24,0.69225539]
[1768036625109,0.19269476,903.55,902.25,0.69225539]
[1768036625311,0.19269476,903.55,902.26,0.69225539]
[1768036625506,0.19269476,903.55,902.27,0.69225539]
[1768036625808,0.19269476,903.55,902.19,6.84162704]
[1768036626109,0.19269476,903.55,902.2,0.69238645]
[1768036626306,0.19269476,903.55,902.21,0.69238645]
[1768036626511,2.7494907,903.85,902.22,0.69238645]
[1768036626712,2.7494907,903.85,902.23,0.69238645]
[1768036626909,2.7494907,903.85,902.24,0.69238645]
[1768036627208,2.7494907,903.86,902.25,0.69238645]
[1768036627412,2.7494907,904.01,902.26,0.69238645]
[1768036627708,2.7494907,904.01,902.27,0.69238645]
[1768036627912,2.7494907,904.05,902.28,0.69238645]
[1768036628108,2.7494907,904.05,902.29,0.69238645]
[1768036628307,2.7494907,904.06,902.3,0.69238645]
[1768036628508,2.7494907,904.06,902.31,0.69238645]
[1768036628713,2.7494907,904.06,902.32,0.69238645]
[1768036628913,2.7494907,904.06,902.33,0.69238645]
[1768036629211,2.7494907,904.06,902.34,0.69238645]
[1768036629408,2.7494907,904.06,902.35,0.69238645]
[1768036629613,2.7494907,904.06,902.36,0.69238645]
[1768036629813,2.7494907,904.06,902.37,0.69238645]
[1768036630009,0.19267556,903.64,902.38,0.69238645]
[1768036630213,0.19267556,903.64,902.39,0.69238645]
[1768036630410,0.19267556,903.64,902.4,0.69238645]
[1768036630614,0.19267556,903.64,902.41,0.69238645]
[1768036630911,0.19267556,903.64,902.42,0.69238645]
[1768036631214,0.19267556,903.64,902.43,0.69238645]
[1768036631509,0.19267556,903.64,902.44,0.69238645]
[1768036631714,0.19267556,903.64,902.45,0.69238645]
[1768036631912,0.19267556,903.64,902.46,0.69238645]
[1768036632112,0.19267556,903.64,902.47,0.69238645]
[1768036632310,0.19267556,903.64,902.48,0.69238645]
[1768036632514,0.19267556,903.64,902.49,0.69238645]
[1768036632710,0.19267556,903.64,902.2,0.83090855]
[1768036632915,0.19267556,903.64,902.21,0.69190815]
[1768036633112,0.19267556,903.64,902.22,0.69190815]
[1768036633317,0.19267556,903.64,902.23,0.69190815]
[1768036633515,0.19267556,903.64,902.19,6.84162704]
[1768036633516,0.19267556,903.64,902.24,0.69190815]
[1768036633813,0.19267556,903.64,902.25,0.69190815]
[1768036634012,0.19267556,903.64,902.26,0.69190815]
[1768036634212,0.19267556,903.64,902.27,0.69190815]
[1768036634414,0.19267556,903.64,902.28,0.69190815]
[1768036634616,0.19267556,903.64,902.29,0.69190815]
[1768036634814,0.19267556,903.64,902.3,0.69190815]
[1768036635016,0.19267556,903.64,902.24,5.44548233]
[1768036635017,0.19267556,903.64,902.31,0.69190815]
[1768036635317,0.19267556,903.64,902.32,0.69190815]
[1768036635514,0.19267556,903.64,902.33,0.69190815]
[1768036635716,0.19267556,903.64,902.34,0.69190815]
[1768036635918,0.19267556,903.64,902.35,0.69190815]
[1768036636217,0.19267556,903.64,902.36,0.69190815]
[1768036636413,0.19267556,903.64,902.37,0.69190815]
[1768036636618,0.19267556,903.64,902.38,0.69190815]
[1768036636818,0.19267556,903.64,902.39,0.69190815]
[1768036637014,0.19267556,903.64,902.4,0.69190815]
[1768036637218,0.19267556,903.64,902.24,5.44548233]
[1768036637219,0.19267556,903.64,902.41,0.69190815]
[1768036637416,0.19267556,903.64,902.24,5.44548233]
[1768036637619,0.19267556,903.64,902.25,0.69135615]